[Event "Live Chess"]
[Site "Chess.com"]
[Date "2023.05.21"]
[Round "-"]
[White "Conradical12"]
[Black "Chesscoach_Golichenko"]
[Result "0-1"]
[WhiteElo "1567"]
[BlackElo "2622"]
[TimeControl "300"]
[EndTime "6:47:07 PDT"]
[Termination "Chesscoach_Golichenko won by checkmate"]

1. a3 {[%clk 0:04:56.8]} 1... e5 {[%clk 0:04:54.6]} 2. Nc3 {[%clk 0:04:56.7]}
2... d5 {[%clk 0:04:53.8]} 3. Nb1 {[%clk 0:04:56.6]} 3... c5 {[%clk 0:04:52.9]}
4. Nc3 {[%clk 0:04:56.5]} 4... Nc6 {[%clk 0:04:52.3]} 5. Nb1 {[%clk 0:04:56.4]}
5... f5 {[%clk 0:04:51.7]} 6. Nc3 {[%clk 0:04:56.3]} 6... Nf6 {[%clk 0:04:51.2]}
7. Nb1 {[%clk 0:04:56.2]} 7... d4 {[%clk 0:04:50.7]} 8. Nc3 {[%clk 0:04:56.1]}
8... dxc3 {[%clk 0:04:50.1]} 9. Nf3 {[%clk 0:04:53.9]} 9... e4 {[%clk 0:04:49]}
10. Ng1 {[%clk 0:04:53.8]} 10... cxb2 {[%clk 0:04:46.2]} 11. Nf3 {[%clk
0:04:53.7]} 11... bxa1=Q {[%clk 0:04:45.3]} 12. Ng1 {[%clk 0:04:53.6]} 12... Nd5
{[%clk 0:04:43.3]} 13. Nf3 {[%clk 0:04:53.5]} 13... Nc3 {[%clk 0:04:42]} 14. Ng1
{[%clk 0:04:52]} 14... Nxd1 {[%clk 0:04:41.2]} 15. Nf3 {[%clk 0:04:51.5]} 15...
Qxc1 {[%clk 0:04:39]} 16. Ng1 {[%clk 0:04:51.4]} 16... Ne3# {[%clk 0:04:38.4]}
0-1

[Event "Live Chess"]
[Site "Chess.com"]
[Date "2023.05.21"]
[Round "-"]
[White "Nazar_777"]
[Black "MJMykh"]
[Result "1/2-1/2"]
[WhiteElo "1567"]
[BlackElo "1173"]
[TimeControl "300"]
[EndTime "6:47:25 PDT"]
[Termination "Game drawn by repetition"]

1. e3 {[%clk 0:04:58.1]} 1... e5 {[%clk 0:04:57.7]} 2. h4 {[%clk 0:04:57.4]}
2... d5 {[%clk 0:04:56.6]} 3. a3 {[%clk 0:04:56.9]} 3... Nc6 {[%clk 0:04:54.9]}
4. c4 {[%clk 0:04:56.3]} 4... dxc4 {[%clk 0:04:51.8]} 5. Bxc4 {[%clk 0:04:55.2]}
5... Nf6 {[%clk 0:04:51.5]} 6. Be2 {[%clk 0:04:54.1]} 6... Bc5 {[%clk
0:04:50.8]} 7. Nc3 {[%clk 0:04:53]} 7... O-O {[%clk 0:04:47.8]} 8. Qc2 {[%clk
0:04:52.2]} 8... Bd7 {[%clk 0:04:42.7]} 9. Nf3 {[%clk 0:04:51.1]} 9... Qc8
{[%clk 0:04:41.2]} 10. b4 {[%clk 0:04:49.6]} 10... Bb6 {[%clk 0:04:35.4]} 11.
Ne4 {[%clk 0:04:48.4]} 11... Nxe4 {[%clk 0:04:33.2]} 12. Qxe4 {[%clk 0:04:47.4]}
12... Bf5 {[%clk 0:04:29.4]} 13. Qc4 {[%clk 0:04:45.1]} 13... e4 {[%clk
0:04:24.1]} 14. Ng5 {[%clk 0:04:43.9]} 14... h6 {[%clk 0:04:20.3]} 15. Nxe4
{[%clk 0:04:39.4]} 15... Bxe4 {[%clk 0:04:18.9]} 16. Qxe4 {[%clk 0:04:38.1]}
16... Re8 {[%clk 0:04:13.7]} 17. Qc2 {[%clk 0:04:36.8]} 17... Qe6 {[%clk
0:04:08.1]} 18. Bb2 {[%clk 0:04:34.6]} 18... Bd4 {[%clk 0:03:57]} 19. Rc1 {[%clk
0:04:32.2]} 19... Bxb2 {[%clk 0:03:54.3]} 20. Qxb2 {[%clk 0:04:31.1]} 20... Rad8
{[%clk 0:03:48.8]} 21. g4 {[%clk 0:04:29.2]} 21... Nd4 {[%clk 0:03:40.2]} 22. g5
{[%clk 0:04:24.1]} 22... Nxe2 {[%clk 0:03:37.5]} 23. Kxe2 {[%clk 0:04:22.9]}
23... Qg4+ {[%clk 0:03:34.6]} 24. Ke1 {[%clk 0:04:20.5]} 24... hxg5 {[%clk
0:03:32.3]} 25. hxg5 {[%clk 0:04:17.1]} 25... Qxg5 {[%clk 0:03:31.3]} 26. Qc2
{[%clk 0:04:15.7]} 26... Rc8 {[%clk 0:03:26.1]} 27. Ke2 {[%clk 0:04:07.6]} 27...
Qg4+ {[%clk 0:03:23.6]} 28. Kf1 {[%clk 0:04:04.8]} 28... Qf3 {[%clk 0:03:13.8]}
29. Rg1 {[%clk 0:04:02.9]} 29... Qh3+ {[%clk 0:03:11]} 30. Ke1 {[%clk
0:04:01.1]} 30... Qh2 {[%clk 0:03:07.4]} 31. Ke2 {[%clk 0:03:58.7]} 31... Qh5+
{[%clk 0:03:02.7]} 32. Kf1 {[%clk 0:03:55.5]} 32... Qh3+ {[%clk 0:02:55.6]} 33.
Ke1 {[%clk 0:03:54.1]} 33... g6 {[%clk 0:02:52.8]} 34. Qc3 {[%clk 0:03:47]}
34... Qh2 {[%clk 0:02:47.2]} 35. Ke2 {[%clk 0:03:44.9]} 35... Qh5+ {[%clk
0:02:44.6]} 36. Kf1 {[%clk 0:03:43.4]} 36... Qh3+ {[%clk 0:02:43.5]} 37. Ke1
{[%clk 0:03:42]} 37... Qh2 {[%clk 0:02:42.6]} 38. Rf1 {[%clk 0:03:39.6]} 38...
Qg2 {[%clk 0:02:37.1]} 39. Ke2 {[%clk 0:03:32.8]} 39... Qg4+ {[%clk 0:02:35]}
40. Kd3 {[%clk 0:03:31.6]} 40... Red8+ {[%clk 0:02:30.2]} 41. Kc2 {[%clk
0:03:30.4]} 41... Qe4+ {[%clk 0:02:27]} 42. Kb2 {[%clk 0:03:28.9]} 42... Rd3
{[%clk 0:02:10]} 43. Qf6 {[%clk 0:03:18.9]} 43... Rxd2+ {[%clk 0:02:04.6]} 44.
Kb3 {[%clk 0:03:15.3]} 44... Qd5+ {[%clk 0:01:59.3]} 45. Ka4 {[%clk 0:02:48.8]}
45... b5+ {[%clk 0:01:54.5]} 46. Ka5 {[%clk 0:02:44.1]} 46... Ra2 {[%clk
0:01:45.5]} 47. Rc3 {[%clk 0:02:40.1]} 47... Qb7 {[%clk 0:01:29.8]} 48. Qc6
{[%clk 0:02:35.4]} 48... Qxc6 {[%clk 0:01:27.2]} 49. Rxc6 {[%clk 0:02:33.1]}
49... Rxa3+ {[%clk 0:01:26.1]} 50. Kxb5 {[%clk 0:02:31.8]} 50... a6+ {[%clk
0:01:21.3]} 51. Kc4 {[%clk 0:02:26.1]} 51... a5 {[%clk 0:01:15.2]} 52. Rb1
{[%clk 0:02:19.5]} 52... axb4 {[%clk 0:01:12.1]} 53. Rxb4 {[%clk 0:02:18.1]}
53... Ra1 {[%clk 0:01:07.6]} 54. Kd3 {[%clk 0:02:15.4]} 54... Rd8+ {[%clk
0:01:03]} 55. Ke2 {[%clk 0:02:14]} 55... Ra2+ {[%clk 0:01:01.6]} 56. Kf3 {[%clk
0:02:12.5]} 56... Rc8 {[%clk 0:00:57.9]} 57. Rb7 {[%clk 0:02:10.3]} 57... Kf8
{[%clk 0:00:53.2]} 58. Rcxc7 {[%clk 0:02:08.9]} 58... Rxc7 {[%clk 0:00:52.5]}
59. Rxc7 {[%clk 0:02:07.6]} 59... Kg7 {[%clk 0:00:52.2]} 60. Kg3 {[%clk
0:02:04.5]} 60... Kf6 {[%clk 0:00:48.2]} 61. f4 {[%clk 0:02:02.5]} 61... Ra3
{[%clk 0:00:45.8]} 62. Kf3 {[%clk 0:02:01]} 62... Ke6 {[%clk 0:00:39]} 63. Ke4
{[%clk 0:01:58.7]} 63... Ra4+ {[%clk 0:00:37]} 64. Kd3 {[%clk 0:01:55.7]} 64...
Ra3+ {[%clk 0:00:34.8]} 65. Ke4 {[%clk 0:01:53.1]} 65... Ra4+ {[%clk 0:00:33.6]}
66. Kf3 {[%clk 0:01:51.9]} 66... f6 {[%clk 0:00:23.7]} 67. e4 {[%clk 0:01:49.7]}
67... Ra3+ {[%clk 0:00:21.7]} 68. Kg4 {[%clk 0:01:48.2]} 68... f5+ {[%clk
0:00:19.3]} 69. exf5+ {[%clk 0:01:41.2]} 69... gxf5+ {[%clk 0:00:18.1]} 70. Kg5
{[%clk 0:01:38.4]} 70... Rg3+ {[%clk 0:00:17]} 71. Kh4 {[%clk 0:01:36.2]} 71...
Rf3 {[%clk 0:00:15.8]} 72. Kg5 {[%clk 0:01:32.1]} 72... Rg3+ {[%clk 0:00:13.8]}
73. Kh4 {[%clk 0:01:30.7]} 73... Rf3 {[%clk 0:00:13.2]} 74. Kg5 {[%clk
0:01:28.9]} 74... Rg3+ {[%clk 0:00:12.5]} 1/2-1/2

[Event "Live Chess"]
[Site "Chess.com"]
[Date "2023.05.21"]
[Round "-"]
[White "Ed_Knox"]
[Black "Doge_Dandolo"]
[Result "0-1"]
[WhiteElo "1444"]
[BlackElo "1906"]
[TimeControl "300"]
[EndTime "6:47:37 PDT"]
[Termination "Doge_Dandolo won on time"]

1. d4 {[%clk 0:04:57.3]} 1... d5 {[%clk 0:04:57.8]} 2. Bf4 {[%clk 0:04:56.5]}
2... c5 {[%clk 0:04:53.5]} 3. e3 {[%clk 0:04:55.6]} 3... Nf6 {[%clk 0:04:51.6]}
4. Nf3 {[%clk 0:04:54.8]} 4... Bf5 {[%clk 0:04:49.3]} 5. Nbd2 {[%clk 0:04:54]}
5... e6 {[%clk 0:04:47.8]} 6. c3 {[%clk 0:04:53.1]} 6... Qb6 {[%clk 0:04:45.7]}
7. Qb3 {[%clk 0:04:51.2]} 7... c4 {[%clk 0:04:42.8]} 8. Qxb6 {[%clk 0:04:50]}
8... axb6 {[%clk 0:04:41.8]} 9. Bxb8 {[%clk 0:04:45.1]} 9... Rxb8 {[%clk
0:04:40]} 10. b3 {[%clk 0:04:40.7]} 10... b5 {[%clk 0:04:33.1]} 11. Nh4 {[%clk
0:04:28.2]} 11... Bg6 {[%clk 0:04:30.2]} 12. Nxg6 {[%clk 0:04:27.3]} 12... hxg6
{[%clk 0:04:29]} 13. Be2 {[%clk 0:04:25]} 13... Bd6 {[%clk 0:04:27.7]} 14. h3
{[%clk 0:04:22.8]} 14... Kd7 {[%clk 0:04:26.3]} 15. O-O {[%clk 0:04:16.8]} 15...
Ra8 {[%clk 0:04:25.2]} 16. bxc4 {[%clk 0:04:13.8]} 16... bxc4 {[%clk 0:04:23.5]}
17. Rfb1 {[%clk 0:04:12.5]} 17... Kc7 {[%clk 0:04:22.2]} 18. a4 {[%clk
0:04:08.6]} 18... Ra6 {[%clk 0:04:12.5]} 19. Bd1 {[%clk 0:03:54.1]} 19... Rha8
{[%clk 0:04:03.9]} 20. Rb5 {[%clk 0:03:36.2]} 20... Ra5 {[%clk 0:03:57]} 21.
Rab1 {[%clk 0:03:30.6]} 21... R8a7 {[%clk 0:03:53.7]} 22. f3 {[%clk 0:03:17.6]}
22... Bg3 {[%clk 0:03:47.9]} 23. e4 {[%clk 0:03:14.6]} 23... Be1 {[%clk
0:03:42.1]} 24. e5 {[%clk 0:02:47.4]} 24... Ne8 {[%clk 0:03:32.3]} 25. R1b2
{[%clk 0:02:36.6]} 25... Bxd2 {[%clk 0:03:29.8]} 26. Rxd2 {[%clk 0:02:35.2]}
26... Rxb5 {[%clk 0:03:28.5]} 27. axb5 {[%clk 0:02:31.2]} 27... b6 {[%clk
0:03:25.6]} 28. Rb2 {[%clk 0:02:21.4]} 28... Ra3 {[%clk 0:03:22.3]} 29. Rc2
{[%clk 0:02:10.7]} 29... Kb7 {[%clk 0:03:13.8]} 30. g4 {[%clk 0:01:44.6]} 30...
Nc7 {[%clk 0:03:11.6]} 31. f4 {[%clk 0:01:43.6]} 31... Nxb5 {[%clk 0:03:10.1]}
32. f5 {[%clk 0:01:42.9]} 32... gxf5 {[%clk 0:03:08.3]} 33. gxf5 {[%clk
0:01:41.8]} 33... exf5 {[%clk 0:03:07.1]} 34. Bh5 {[%clk 0:01:40.4]} 34... g6
{[%clk 0:03:05.9]} 35. Bf3 {[%clk 0:01:37.8]} 35... Nxc3 {[%clk 0:02:54.6]} 36.
h4 {[%clk 0:01:18.8]} 36... Ne4 {[%clk 0:02:53.1]} 37. h5 {[%clk 0:01:12.6]}
37... Rxf3 {[%clk 0:02:33.1]} 38. h6 {[%clk 0:00:58.2]} 38... Ng5 {[%clk
0:02:30.6]} 39. Rh2 {[%clk 0:00:45.7]} 39... Nh7 {[%clk 0:02:29.4]} 40. Kg2
{[%clk 0:00:39.3]} 40... Rd3 {[%clk 0:02:27.2]} 41. Rh4 {[%clk 0:00:37.6]} 41...
b5 {[%clk 0:02:26]} 42. e6 {[%clk 0:00:34.2]} 42... fxe6 {[%clk 0:02:23.6]} 43.
Rh1 {[%clk 0:00:25.9]} 43... b4 {[%clk 0:02:21]} 44. Rb1 {[%clk 0:00:24.9]}
44... b3 {[%clk 0:02:19.1]} 45. Kf2 {[%clk 0:00:24.2]} 45... Rxd4 {[%clk
0:02:14.4]} 46. Ke3 {[%clk 0:00:23]} 46... Rh4 {[%clk 0:02:11.8]} 47. Kd2 {[%clk
0:00:16.6]} 47... Rxh6 {[%clk 0:02:08.7]} 48. Kc3 {[%clk 0:00:15.8]} 48... Kc6
{[%clk 0:02:07.1]} 49. Kd4 {[%clk 0:00:14.9]} 49... Kd6 {[%clk 0:02:01.4]} 50.
Re1 {[%clk 0:00:13]} 50... Rh4+ {[%clk 0:01:58.6]} 51. Ke3 {[%clk 0:00:10.1]}
51... Nf6 {[%clk 0:01:56.6]} 52. Re2 {[%clk 0:00:07.3]} 52... e5 {[%clk
0:01:51.6]} 53. Rh2 {[%clk 0:00:06.2]} 53... Rxh2 {[%clk 0:01:49.8]} 54. Kf3
{[%clk 0:00:04.2]} 54... Rh3+ {[%clk 0:01:48.4]} 55. Ke2 {[%clk 0:00:03]} 55...
d4 {[%clk 0:01:46.9]} 56. Kd1 {[%clk 0:00:01.4]} 56... c3 {[%clk 0:01:46.1]} 57.
Kc1 {[%clk 0:00:01.1]} 57... e4 {[%clk 0:01:43.2]} 58. Kb1 {[%clk 0:00:00.8]}
58... d3 {[%clk 0:01:40.9]} 0-1

[Event "Live Chess"]
[Site "Chess.com"]
[Date "2023.05.21"]
[Round "-"]
[White "Missedidea"]
[Black "1600x"]
[Result "0-1"]
[WhiteElo "1769"]
[BlackElo "1907"]
[TimeControl "300"]
[EndTime "6:47:39 PDT"]
[Termination "1600x won by resignation"]

1. d4 {[%clk 0:04:59]} 1... Nf6 {[%clk 0:04:56.2]} 2. c4 {[%clk 0:04:57.4]} 2...
c6 {[%clk 0:04:54.7]} 3. Nc3 {[%clk 0:04:55.1]} 3... d5 {[%clk 0:04:53.4]} 4.
Nf3 {[%clk 0:04:50.4]} 4... dxc4 {[%clk 0:04:51.6]} 5. e4 {[%clk 0:04:48.2]}
5... b5 {[%clk 0:04:50]} 6. e5 {[%clk 0:04:47.1]} 6... Nd5 {[%clk 0:04:48.7]} 7.
a4 {[%clk 0:04:39.3]} 7... Qa5 {[%clk 0:04:46.3]} 8. Bd2 {[%clk 0:04:36.9]} 8...
b4 {[%clk 0:04:41.8]} 9. Ne4 {[%clk 0:04:33.7]} 9... c3 {[%clk 0:04:22.8]} 10.
Bc1 {[%clk 0:04:16.6]} 10... Bf5 {[%clk 0:04:19.7]} 11. Bd3 {[%clk 0:04:13.3]}
11... e6 {[%clk 0:04:18.2]} 12. O-O {[%clk 0:04:09.8]} 12... Nd7 {[%clk
0:04:16.3]} 13. Qc2 {[%clk 0:04:04.5]} 13... b3 {[%clk 0:04:13.8]} 14. Qe2
{[%clk 0:03:59.5]} 14... Bxe4 {[%clk 0:04:12.3]} 15. Bxe4 {[%clk 0:03:57.2]}
15... Bb4 {[%clk 0:04:09.6]} 16. Rd1 {[%clk 0:03:49.8]} 16... c2 {[%clk
0:03:52.6]} 17. Rd3 {[%clk 0:03:45.9]} 17... Qa6 {[%clk 0:03:50.9]} 18. Kf1
{[%clk 0:03:40.1]} 18... Qc4 {[%clk 0:03:48.5]} 19. Nd2 {[%clk 0:03:33.5]} 19...
Bxd2 {[%clk 0:03:46]} 20. Bxd2 {[%clk 0:03:31.8]} 20... Rb8 {[%clk 0:03:41.4]}
21. Bxd5 {[%clk 0:03:25.4]} 21... cxd5 {[%clk 0:03:40]} 22. Qe3 {[%clk
0:03:05.7]} 22... Nb6 {[%clk 0:03:36.1]} 23. Ke1 {[%clk 0:02:56.6]} 23... Nxa4
{[%clk 0:03:34.1]} 24. Rxb3 {[%clk 0:02:52.9]} 24... Rxb3 {[%clk 0:03:29.4]} 25.
Bc3 {[%clk 0:02:49.1]} 25... Nxc3 {[%clk 0:03:27.3]} 26. bxc3 {[%clk 0:02:47]}
26... Rb1+ {[%clk 0:03:25.6]} 0-1

[Event "Live Chess"]
[Site "Chess.com"]
[Date "2023.05.21"]
[Round "-"]
[White "Tiltador"]
[Black "djw60"]
[Result "0-1"]
[WhiteElo "841"]
[BlackElo "2165"]
[TimeControl "300"]
[EndTime "6:47:49 PDT"]
[Termination "djw60 won by resignation"]

1. e4 {[%clk 0:04:55.6]} 1... e6 {[%clk 0:04:57.9]} 2. Nf3 {[%clk 0:04:54.5]}
2... d5 {[%clk 0:04:56.8]} 3. d3 {[%clk 0:04:51.2]} 3... Nf6 {[%clk 0:04:54.1]}
4. Bg5 {[%clk 0:04:46.9]} 4... dxe4 {[%clk 0:04:51.8]} 5. Bxf6 {[%clk
0:04:45.7]} 5... Qxf6 {[%clk 0:04:50.1]} 6. dxe4 {[%clk 0:04:43.7]} 6... Qxb2
{[%clk 0:04:47]} 7. Nbd2 {[%clk 0:04:41.2]} 7... Bb4 {[%clk 0:04:32.1]} 8. Be2
{[%clk 0:04:38.8]} 8... O-O {[%clk 0:04:23.9]} 9. O-O {[%clk 0:04:37.5]} 9...
Qf6 {[%clk 0:04:22.2]} 10. a3 {[%clk 0:04:24.5]} 10... Bc3 {[%clk 0:04:19]} 11.
Rb1 {[%clk 0:04:21.3]} 11... Nc6 {[%clk 0:04:13.8]} 12. Bd3 {[%clk 0:04:07]}
12... b6 {[%clk 0:03:57.9]} 13. Qe2 {[%clk 0:03:56.7]} 13... Bb7 {[%clk
0:03:54.4]} 14. a4 {[%clk 0:03:39.7]} 14... Rad8 {[%clk 0:03:46.5]} 15. Rb3
{[%clk 0:03:31.1]} 15... Bxd2 {[%clk 0:03:36.4]} 16. Nxd2 {[%clk 0:03:23.8]}
16... Nd4 {[%clk 0:03:33.5]} 17. Qe3 {[%clk 0:02:58.5]} 17... Nxb3 {[%clk
0:03:30.4]} 18. Nxb3 {[%clk 0:02:57.5]} 18... e5 {[%clk 0:03:25.2]} 19. a5
{[%clk 0:02:55.3]} 19... Qf4 {[%clk 0:03:15.6]} 20. axb6 {[%clk 0:02:42.2]}
20... Qxe3 {[%clk 0:03:11.8]} 21. fxe3 {[%clk 0:02:40.4]} 21... axb6 {[%clk
0:03:10.7]} 22. Nd2 {[%clk 0:02:36]} 22... Ba6 {[%clk 0:02:40.2]} 23. Bxa6
{[%clk 0:02:29]} 23... Rxd2 {[%clk 0:02:38.8]} 24. c4 {[%clk 0:02:20.3]} 24...
Rfd8 {[%clk 0:02:28]} 25. Bb7 {[%clk 0:02:13.6]} 25... Rd1 {[%clk 0:02:25.5]}
26. Bd5 {[%clk 0:02:07.2]} 26... Rxf1+ {[%clk 0:02:24.3]} 27. Kxf1 {[%clk
0:02:05.8]} 27... Kf8 {[%clk 0:02:23.6]} 28. Kf2 {[%clk 0:02:04.4]} 28... Ke7
{[%clk 0:02:22.2]} 29. Kg3 {[%clk 0:02:03.1]} 29... Rf8 {[%clk 0:02:18.1]} 30.
Kg4 {[%clk 0:02:01.6]} 30... Kd6 {[%clk 0:02:17.2]} 31. Bb7 {[%clk 0:01:45.6]}
31... c6 {[%clk 0:02:12.5]} 32. Ba6 {[%clk 0:01:43.6]} 32... Ra8 {[%clk
0:02:07.1]} 33. Bb7 {[%clk 0:01:41]} 33... Rb8 {[%clk 0:02:06]} 34. Ba6 {[%clk
0:01:38.7]} 34... Kc7 {[%clk 0:01:58.1]} 35. Kf5 {[%clk 0:01:30.6]} 35... Ra8
{[%clk 0:01:55.6]} 36. Bb5 {[%clk 0:01:21.8]} 36... cxb5 {[%clk 0:01:54]} 37.
cxb5 {[%clk 0:01:20.5]} 37... Re8 {[%clk 0:01:52.7]} 38. g4 {[%clk 0:01:17.6]}
38... Kd6 {[%clk 0:01:51.6]} 39. g5 {[%clk 0:01:16.5]} 39... Kc5 {[%clk
0:01:50.7]} 40. h4 {[%clk 0:01:14.9]} 40... Kxb5 {[%clk 0:01:49.7]} 41. h5
{[%clk 0:01:14.1]} 41... Kc4 {[%clk 0:01:48.6]} 42. g6 {[%clk 0:01:13.1]} 42...
hxg6+ {[%clk 0:01:46.5]} 43. hxg6 {[%clk 0:01:12.1]} 43... fxg6+ {[%clk
0:01:45.5]} 44. Kxg6 {[%clk 0:01:09.8]} 44... b5 {[%clk 0:01:44.6]} 45. Kxg7
{[%clk 0:01:08.8]} 45... b4 {[%clk 0:01:43.6]} 46. Kf7 {[%clk 0:01:07.8]} 46...
Rb8 {[%clk 0:01:42.5]} 47. Ke6 {[%clk 0:01:06.5]} 47... Rb5 {[%clk 0:01:41.3]}
48. Kf5 {[%clk 0:01:04.2]} 48... b3 {[%clk 0:01:40.5]} 49. Kg4 {[%clk
0:01:02.1]} 49... b2 {[%clk 0:01:39.7]} 50. Kf3 {[%clk 0:01:01.2]} 50... b1=Q
{[%clk 0:01:38.2]} 0-1

[Event "Live Chess"]
[Site "Chess.com"]
[Date "2023.05.21"]
[Round "-"]
[White "martinsmartin63"]
[Black "smoggyrabbit"]
[Result "0-1"]
[WhiteElo "758"]
[BlackElo "1629"]
[TimeControl "300"]
[EndTime "6:47:52 PDT"]
[Termination "smoggyrabbit won by resignation"]

1. e4 {[%clk 0:04:57.3]} 1... e6 {[%clk 0:04:57.8]} 2. Nf3 {[%clk 0:04:54.2]}
2... d5 {[%clk 0:04:56.4]} 3. d4 {[%clk 0:04:49.5]} 3... Nf6 {[%clk 0:04:38.6]}
4. Nc3 {[%clk 0:04:45.7]} 4... c5 {[%clk 0:04:25.4]} 5. e5 {[%clk 0:04:42.5]}
5... Nfd7 {[%clk 0:04:23.4]} 6. Bg5 {[%clk 0:04:38.5]} 6... Be7 {[%clk
0:04:20.9]} 7. Qd2 {[%clk 0:04:35.4]} 7... h6 {[%clk 0:04:14.6]} 8. Bxe7 {[%clk
0:04:33.1]} 8... Qxe7 {[%clk 0:04:14.1]} 9. Bb5 {[%clk 0:04:27.6]} 9... a6
{[%clk 0:04:04.7]} 10. Bxd7+ {[%clk 0:04:21]} 10... Bxd7 {[%clk 0:04:03.4]} 11.
O-O {[%clk 0:04:15.7]} 11... Nc6 {[%clk 0:04:00.3]} 12. a3 {[%clk 0:03:59.1]}
12... O-O {[%clk 0:03:54.6]} 13. Rfd1 {[%clk 0:03:39.1]} 13... cxd4 {[%clk
0:03:51]} 14. Nxd4 {[%clk 0:03:35.9]} 14... Nxe5 {[%clk 0:03:49.8]} 15. Qf4
{[%clk 0:03:25.7]} 15... Ng6 {[%clk 0:03:40.9]} 16. Qg3 {[%clk 0:03:13.8]} 16...
Qh4 {[%clk 0:03:25.8]} 17. Qxh4 {[%clk 0:03:09.4]} 17... Nxh4 {[%clk 0:03:25.7]}
18. g3 {[%clk 0:03:04.5]} 18... Ng6 {[%clk 0:03:22.7]} 19. Rd3 {[%clk
0:03:00.8]} 19... Bc6 {[%clk 0:03:18.2]} 20. Nxc6 {[%clk 0:02:54.5]} 20... bxc6
{[%clk 0:03:16.7]} 21. Rad1 {[%clk 0:02:48.9]} 21... Ne5 {[%clk 0:03:10]} 22.
Rd4 {[%clk 0:02:44.2]} 22... Nf3+ {[%clk 0:03:08.9]} 23. Kf1 {[%clk 0:02:33.8]}
23... Nxd4 {[%clk 0:03:08.8]} 24. Rxd4 {[%clk 0:02:31.1]} 24... Rab8 {[%clk
0:02:56.6]} 25. b4 {[%clk 0:02:22.5]} 25... Rfc8 {[%clk 0:02:51.6]} 26. Na4
{[%clk 0:02:18.3]} 26... Rb5 {[%clk 0:02:43.3]} 27. Nc5 {[%clk 0:02:14.9]} 27...
a5 {[%clk 0:02:38.2]} 28. Nd7 {[%clk 0:02:11.3]} 28... axb4 {[%clk 0:02:33]} 29.
Rxb4 {[%clk 0:02:08.4]} 29... Rxb4 {[%clk 0:02:23.1]} 30. axb4 {[%clk
0:02:05.7]} 30... Rc7 {[%clk 0:02:02.5]} 31. Nc5 {[%clk 0:02:01.3]} 31... Ra7
{[%clk 0:01:59.1]} 32. Kg2 {[%clk 0:01:56.3]} 32... Ra2 {[%clk 0:01:52.6]} 33.
c4 {[%clk 0:01:52.2]} 33... dxc4 {[%clk 0:01:46.5]} 34. b5 {[%clk 0:01:49.9]}
34... cxb5 {[%clk 0:01:45]} 35. Ne4 {[%clk 0:01:43.3]} 35... b4 {[%clk
0:01:40.5]} 36. Nd2 {[%clk 0:01:40.5]} 36... c3 {[%clk 0:01:37.9]} 0-1

[Event "Live Chess"]
[Site "Chess.com"]
[Date "2023.05.21"]
[Round "-"]
[White "Leonid_Starozhilov"]
[Black "DRS44"]
[Result "1-0"]
[WhiteElo "2623"]
[BlackElo "1322"]
[TimeControl "300"]
[EndTime "6:48:01 PDT"]
[Termination "Leonid_Starozhilov won by resignation"]

1. d4 {[%clk 0:04:58.7]} 1... d5 {[%clk 0:04:51.4]} 2. Nf3 {[%clk 0:04:56]} 2...
c5 {[%clk 0:04:43.6]} 3. c4 {[%clk 0:04:52.3]} 3... dxc4 {[%clk 0:04:31]} 4. d5
{[%clk 0:04:49.2]} 4... e6 {[%clk 0:04:26.6]} 5. e4 {[%clk 0:04:44.6]} 5... exd5
{[%clk 0:04:18.5]} 6. exd5 {[%clk 0:04:42.3]} 6... b5 {[%clk 0:04:10.1]} 7. a4
{[%clk 0:04:39.6]} 7... b4 {[%clk 0:03:56.3]} 8. Bxc4 {[%clk 0:04:37.7]} 8...
Nf6 {[%clk 0:03:45.7]} 9. O-O {[%clk 0:04:33.4]} 9... Bg4 {[%clk 0:03:36.6]} 10.
h3 {[%clk 0:04:32]} 10... Bh5 {[%clk 0:03:27]} 11. Re1+ {[%clk 0:04:30.6]} 11...
Be7 {[%clk 0:02:30.2]} 12. d6 {[%clk 0:03:53.4]} 12... Bxf3 {[%clk 0:02:23]} 13.
Qxf3 {[%clk 0:03:50.3]} 1-0

[Event "Live Chess"]
[Site "Chess.com"]
[Date "2023.05.21"]
[Round "-"]
[White "AMCWAML"]
[Black "ShanthamGrarks"]
[Result "1-0"]
[WhiteElo "2265"]
[BlackElo "1976"]
[TimeControl "300"]
[EndTime "6:48:19 PDT"]
[Termination "AMCWAML won by resignation"]

1. Nf3 {[%clk 0:04:58.4]} 1... e6 {[%clk 0:04:54.5]} 2. c4 {[%clk 0:04:57.9]}
2... c6 {[%clk 0:04:52.9]} 3. g3 {[%clk 0:04:57.8]} 3... d5 {[%clk 0:04:52.3]}
4. Bg2 {[%clk 0:04:57.5]} 4... Nf6 {[%clk 0:04:51.3]} 5. O-O {[%clk 0:04:56.9]}
5... Be7 {[%clk 0:04:50.5]} 6. b3 {[%clk 0:04:55.8]} 6... O-O {[%clk 0:04:50]}
7. Bb2 {[%clk 0:04:55.5]} 7... Nbd7 {[%clk 0:04:48]} 8. d4 {[%clk 0:04:53.1]}
8... h6 {[%clk 0:04:38.6]} 9. Nc3 {[%clk 0:04:49.2]} 9... Nh7 {[%clk 0:04:36.7]}
10. e4 {[%clk 0:04:46.9]} 10... dxe4 {[%clk 0:04:34.9]} 11. Nxe4 {[%clk
0:04:46.8]} 11... Ndf6 {[%clk 0:04:33.9]} 12. Nc3 {[%clk 0:04:41.5]} 12... Ng4
{[%clk 0:04:22.8]} 13. Qe2 {[%clk 0:04:36.6]} 13... Ngf6 {[%clk 0:04:14.3]} 14.
Rad1 {[%clk 0:04:32.4]} 14... Rb8 {[%clk 0:04:12.8]} 15. Rfe1 {[%clk 0:04:28.7]}
15... Qa5 {[%clk 0:04:11.6]} 16. Ne5 {[%clk 0:04:24.7]} 16... Rd8 {[%clk
0:04:02.6]} 17. Rd3 {[%clk 0:04:00.2]} 17... Nd7 {[%clk 0:03:50]} 18. Nxf7
{[%clk 0:03:54.6]} 18... Kxf7 {[%clk 0:03:45.1]} 19. Qxe6+ {[%clk 0:03:53.7]}
19... Kf8 {[%clk 0:03:39.2]} 20. Qxe7+ {[%clk 0:03:52.4]} 20... Kg8 {[%clk
0:03:38.7]} 21. b4 {[%clk 0:03:43.1]} 21... Qc7 {[%clk 0:03:29.4]} 22. d5 {[%clk
0:03:41.5]} 22... Rf8 {[%clk 0:03:13]} 23. d6 {[%clk 0:03:33.2]} 23... Qd8
{[%clk 0:03:05]} 24. c5 {[%clk 0:03:15.2]} 24... Nhf6 {[%clk 0:02:59.9]} 25.
Qe6+ {[%clk 0:03:04.9]} 25... Kh8 {[%clk 0:02:55.9]} 26. Ne4 {[%clk 0:03:04]}
26... Nxc5 {[%clk 0:02:46.8]} 27. Nxc5 {[%clk 0:02:55.6]} 27... Bxe6 {[%clk
0:02:44.8]} 28. Nxe6 {[%clk 0:02:55.5]} 28... Qd7 {[%clk 0:02:35.3]} 29. Nxf8
{[%clk 0:02:50.2]} 29... Rxf8 {[%clk 0:02:31]} 30. Re7 {[%clk 0:02:49.4]} 30...
Qf5 {[%clk 0:02:29.6]} 31. Rd1 {[%clk 0:02:40.8]} 31... Nd5 {[%clk 0:02:21.5]}
32. Bxg7+ {[%clk 0:02:38.5]} 32... Kg8 {[%clk 0:02:18.6]} 33. Bxd5+ {[%clk
0:02:29]} 33... cxd5 {[%clk 0:02:14.5]} 34. Bxf8 {[%clk 0:02:27.6]} 34... Kxf8
{[%clk 0:02:09.3]} 35. Rc7 {[%clk 0:02:18.3]} 35... d4 {[%clk 0:01:53.1]} 36.
Rxd4 {[%clk 0:02:06.7]} 36... Qb1+ {[%clk 0:01:48.3]} 37. Kg2 {[%clk 0:02:05.9]}
37... Qb2 {[%clk 0:01:40.6]} 38. Rf4+ {[%clk 0:02:00]} 38... Ke8 {[%clk
0:01:39.5]} 39. Re7+ {[%clk 0:01:59.4]} 1-0